fUSD/lending_fUSD_20240505
["ID","MTS","AMOUNT","RATE_DAILY","PERIOD"]
[325430610,1714878645523,-500.0,0.00035616,8]
[325430611,1714878645533,-1563.5,0.00035616,8]
[325430612,1714878645542,-829.88,0.00035616,8]
[325430613,1714878645551,-954.02,0.00035616,8]
[325430614,1714878645561,-711.2,0.00035616,8]
[325430615,1714878645573,-500.0,0.00035616,8]
[325430616,1714878645581,-555.69,0.00035616,8]
[325430617,1714878645591,-500.0,0.00035616,8]
[325430618,1714878645601,-500.0,0.00035616,8]
[325430619,1714878645610,-500.0,0.00035616,8]
[325430620,1714878645619,-500.0,0.00035616,8]
[325430621,1714878645628,-931.1,0.00035616,8]
[325430622,1714878645636,-500.0,0.00035616,8]
[325430623,1714878645646,-500.0,0.00035616,8]
[325430624,1714878645655,-500.0,0.00035616,8]
[325430625,1714878645664,-1101.81,0.00035616,8]
[325430626,1714878645673,-1429.66,0.00035616,8]
[325430627,1714878645683,-883.26,0.00035616,8]
[325430628,1714878645692,-500.0,0.00035616,8]
[325430629,1714878645702,-755.07,0.00035616,8]
[325430630,1714878645711,-500.0,0.00035616,8]
[325430631,1714878645721,-1351.15,0.00035616,8]
[325430632,1714878645730,-699.86,0.00035616,8]
[325430633,1714878645740,-500.0,0.00035616,8]
[325430634,1714878645749,-622.83,0.00035616,8]
[325430635,1714878645759,-902.47,0.00035616,8]
[325430636,1714878645768,-655.55,0.00035616,8]
[325430637,1714878645778,-500.0,0.00035616,8]
[325430638,1714878645787,-500.0,0.00035616,8]
[325430639,1714878645796,-500.0,0.00035616,8]
[325430640,1714878645806,-500.0,0.00035616,8]
[325430641,1714878645816,-718.64,0.00035616,8]
[325430642,1714878645826,-500.0,0.00035616,8]
[325430643,1714878645835,-1442.63,0.00035616,8]
[325430644,1714878645845,-618.46,0.00035616,8]
[325430645,1714878645854,-1527.58,0.00035616,8]
[325430646,1714878645864,-500.0,0.00035616,8]
[325430647,1714878645873,-500.0,0.00035616,8]
[325430648,1714878645883,-500.0,0.00035616,8]
[325430649,1714878645892,-500.0,0.00035616,8]
[325430650,1714878646040,-741.61,0.00035616,8]
[325430651,1714878646050,-1323.96,0.00035616,8]
[325430652,1714878646060,-500.0,0.00035616,8]
[325430653,1714878646070,-746.74,0.00035616,8]
[325430654,1714878646080,-503.53,0.00035616,8]
[325430655,1714878646089,-500.0,0.00035616,8]
[325430656,1714878646099,-654.81,0.00035616,8]
[325430657,1714878646108,-500.0,0.00035616,8]
[325430658,1714878646118,-636.55,0.00035616,8]
[325430659,1714878646127,-500.0,0.00035616,8]
[325430660,1714878646137,-569.33,0.00035616,8]
[325430661,1714878646147,-658.35,0.00035616,8]
[325430662,1714878646157,-500.0,0.00035616,8]
[325430663,1714878646167,-500.0,0.00035616,8]
[325430664,1714878646176,-829.32,0.00035616,8]
[325430665,1714878646186,-555.17,0.00035616,8]
[325430666,1714878646196,-1208.66,0.00035616,8]
[325430667,1714878646206,-500.0,0.00035616,8]
[325430668,1714878646216,-217.34678098,0.00035616,8]
[325430669,1714878646226,-527.91873548,0.00035616,8]
[325430670,1714878646236,-500.0,0.00035616,8]
[325430671,1714878646247,-500.0,0.00035616,8]
[325430672,1714878646259,-500.0,0.00035616,8]
[325430673,1714878646268,-1182.77,0.00035616,8]
[325430674,1714878646278,-572.06,0.00035616,8]
[325430675,1714878646287,-1297.99,0.00035616,8]
[325430676,1714878646297,-1211.97,0.00035616,8]
[325430677,1714878646306,-500.0,0.00035616,8]
[325430678,1714878646316,-500.0,0.00035616,8]
[325430679,1714878646330,-1205.01,0.00035616,8]
[325430680,1714878646340,-500.0,0.00035616,8]
[325430681,1714878646349,-1357.61,0.00035616,8]
[325430682,1714878646359,-873.19,0.00035616,8]
[325430683,1714878646368,-1437.41,0.00035616,8]
[325430684,1714878646377,-500.0,0.00035616,8]
[325430685,1714878646387,-559.95,0.00035616,8]
[325430686,1714878646396,-1103.31,0.00035616,8]
[325430687,1714878646406,-1315.9,0.00035616,8]
[325430688,1714878646415,-1563.88,0.00035616,8]
[325430689,1714878646426,-510.31699514,0.00035616,8]
[325430690,1714878646435,-500.0,0.00035616,8]
[325430691,1714878646445,-784.6,0.00035616,8]
[325430692,1714878646454,-500.0,0.00035616,8]
[325430693,1714878646464,-500.0,0.00035616,8]
[325430694,1714878646474,-500.0,0.00035616,8]
[325430695,1714878646483,-1033.4,0.00035616,8]
[325430696,1714878646493,-500.0,0.00035616,8]
[325430697,1714878646505,-511.31,0.00035616,8]
[325430698,1714878646518,-500.0,0.00035616,8]
[325430699,1714878646533,-500.0,0.00035616,8]
[325430700,1714878646542,-502.16878808,0.00035616,8]
[325430701,1714878646552,-902.41,0.00035616,8]
[325430702,1714878646561,-500.0,0.00035616,8]
[325430703,1714878646571,-500.0,0.00035616,8]
[325430704,1714878646581,-500.0,0.00035616,8]
[325430705,1714878646590,-500.0,0.00035616,8]
[325430706,1714878646599,-500.0,0.00035616,8]
[325430707,1714878646609,-1485.89,0.00035616,8]
[325430708,1714878646619,-500.0,0.00035616,8]
[325430709,1714878646629,-500.0,0.00035616,9]
[325430710,1714878646639,-500.0,0.00035616,10]
[325430711,1714878646649,-500.0,0.00035616,11]
[325430712,1714878646659,-266.67449825,0.00035616,12]
[325430713,1714878646669,-152.62835579,0.00035616,8]
[325430714,1714878646679,-1667.08,0.00035616,8]
[325430715,1714878646689,-500.0,0.00035616,8]
[325430716,1714878646698,-479.04937859,0.00035616,8]
[325430717,1714878646708,-500.0,0.00035616,8]
[325430718,1714878646718,-793.16,0.00035616,8]
[325430719,1714878646727,-500.0,0.00035616,8]
[325430720,1714878646736,-3550.56,0.00035616,8]
[325430721,1714878646746,-1369.33,0.00035616,8]
[325430722,1714878646755,-831.74,0.00035616,8]
[325430723,1714878646765,-887.23,0.00035616,8]
[325430724,1714878646774,-500.0,0.00035616,8]
[325430725,1714878646784,-500.0,0.00035616,8]
[325430726,1714878646793,-2320.41,0.00035616,8]
[325430727,1714878646803,-508.18567246,0.00035616,8]
[325430728,1714878646812,-500.0,0.00035616,8]
[325430729,1714878646822,-500.0,0.00035616,8]
[325430730,1714878646832,-909.99,0.00035616,8]
[325430731,1714878646842,-500.0,0.00035616,8]
[325430732,1714878646854,-657.24,0.00035616,8]
[325430733,1714878646866,-1018.84,0.00035616,8]
[325430734,1714878646876,-504.05948711,0.00035616,8]
[325430735,1714878646886,-1823.91,0.00035616,8]
[325430736,1714878646895,-500.0,0.00035616,8]
[325430737,1714878646905,-500.0,0.00035616,8]
[325430738,1714878646915,-500.0,0.00035616,8]
[325430739,1714878646925,-1809.08,0.00035616,8]
[325430740,1714878646934,-500.0,0.00035616,8]
[325430741,1714878646944,-1222.65,0.00035616,8]
[325430742,1714878646954,-500.0,0.00035616,8]
[325430743,1714878646964,-549.42,0.00035616,8]
[325430744,1714878646973,-500.0,0.00035616,8]
[325430745,1714878646983,-500.0,0.00035616,8]
[325430746,1714878646994,-1354.08,0.00035616,8]
[325430747,1714878647003,-1660.38,0.00035616,8]
[325430748,1714878647013,-500.0,0.00035616,8]
[325430749,1714878647022,-1420.41,0.00035616,8]
[325430750,1714878647032,-1593.55,0.00035616,8]
[325430751,1714878647042,-809.16,0.00035616,8]
[325430752,1714878647052,-166.62611284,0.00035616,8]
[325430753,1714878647062,-673.25,0.00035616,8]
[325430754,1714878647072,-500.0,0.00035616,8]
[325430755,1714878647082,-500.0,0.00035616,8]
[325430756,1714878647091,-2303.88,0.00035616,8]
[325430757,1714878647101,-1333.75,0.00035616,8]
[325430758,1714878647111,-3384.09,0.00035616,8]
[325430759,1714878647120,-500.0,0.00035616,8]
[325430760,1714878647130,-1262.58,0.00035616,8]
[325430761,1714878647139,-1150.55,0.00035616,8]
[325430762,1714878647149,-2725.26,0.00035616,8]
[325430763,1714878647159,-500.0,0.00035616,8]
[325430764,1714878647168,-500.0,0.00035616,8]
[325430765,1714878647178,-500.0,0.00035616,8]
[325430766,1714878647187,-1749.84,0.00035616,8]
[325430767,1714878647197,-1224.27,0.00035616,8]
[325430768,1714878647207,-511.75441636,0.00035616,8]
[325430769,1714878647216,-1287.97,0.00035616,8]
[325430770,1714878647226,-500.0,0.00035616,8]
[325430771,1714878647236,-500.0,0.00035616,8]
[325430772,1714878647246,-750.13,0.00035616,8]
[325430773,1714878647257,-2141.18,0.00035616,8]
[325430774,1714878647267,-962.16,0.00035616,8]
[325430775,1714878647277,-2094.74,0.00035616,8]
[325430776,1714878647287,-183.77819522,0.00035616,8]
[325430777,1714878647297,-500.0,0.00035616,8]
[325430778,1714878647307,-500.0,0.00035616,8]
[325430779,1714878647317,-500.0,0.00035616,8]
[325430780,1714878647328,-500.0,0.00035616,8]
[325430781,1714878647338,-500.0,0.00035616,8]
[325430782,1714878647348,-1873.61,0.00035616,8]
[325430783,1714878647358,-500.0,0.00035616,8]
[325430784,1714878647367,-1886.44,0.00035616,8]
[325430785,1714878647377,-1053.26,0.00035616,8]
[325430786,1714878647387,-500.0,0.00035616,8]
[325430787,1714878647396,-750.66,0.00035616,8]
[325430788,1714878647405,-712.17,0.00035616,8]
[325430789,1714878647416,-500.0,0.00035616,8]
[325430790,1714878647426,-592.13706221,0.00035616,8]
[325430791,1714878647436,-500.0,0.00035616,8]
[325430792,1714878647446,-1550.6,0.00035616,8]
[325430793,1714878647457,-500.0,0.00035616,8]
[325430794,1714878647466,-500.0,0.00035616,8]
[325430795,1714878647476,-2275.08,0.00035616,7]
[325430796,1714878647486,-500.0,0.00035616,8]
[325430797,1714878647495,-500.0,0.00035616,8]
[325430798,1714878647505,-500.0,0.00035616,8]
[325430799,1714878647515,-500.0,0.00035616,8]
[325430800,1714878647524,-1845.22,0.00035616,8]
[325430801,1714878647534,-500.0,0.00035616,8]
[325430802,1714878647543,-1551.87,0.00035616,8]
[325430803,1714878647553,-1207.56,0.00035616,8]
[325430804,1714878647562,-2473.06,0.00035616,8]
[325430805,1714878647573,-500.0,0.00035616,8]
[325430806,1714878647582,-500.0,0.00035616,8]
[325430807,1714878647592,-774.22,0.00035616,8]
[325430808,1714878647601,-500.0,0.00035616,8]
[325430809,1714878647611,-2658.53,0.00035616,8]
[325430810,1714878647620,-500.0,0.00035616,8]
[325430811,1714878647630,-3254.02,0.00035616,8]
[325430812,1714878647640,-922.98,0.00035616,8]
[325430813,1714878647649,-2766.45,0.00035616,8]
[325430814,1714878647659,-500.0,0.00035616,8]
[325430815,1714878647669,-1797.9,0.00035616,8]
[325430816,1714878647678,-1477.34,0.00035616,8]
[325430817,1714878647689,-688.62,0.00035616,8]
[325430818,1714878647699,-500.0,0.00035616,8]
[325430819,1714878647709,-516.49,0.00035616,8]
[325430820,1714878647719,-1246.37,0.00035616,8]
[325430821,1714878647729,-1177.07,0.00035616,8]
[325430822,1714878647739,-588.49,0.00035616,8]
[325430823,1714878647749,-500.0,0.00035616,8]
[325430824,1714878647759,-3122.14,0.00035616,8]
[325430825,1714878647769,-873.59,0.00035616,8]
[325430826,1714878647778,-630.03,0.00035616,8]
[325430827,1714878647788,-1963.28,0.00035616,8]
[325430828,1714878647798,-1299.24,0.00035616,8]
[325430829,1714878647808,-2274.62,0.00035616,8]
[325430830,1714878647817,-500.67,0.00035616,8]
[325430831,1714878647829,-624.49,0.00035616,8]
[325430832,1714878647838,-2240.87,0.00035616,8]
[325430833,1714878647848,-500.0,0.00035616,8]
[325430834,1714878647857,-607.2,0.00035616,8]
[325430835,1714878647866,-2532.43,0.00035616,8]
[325430836,1714878647876,-1292.13,0.00035616,8]
[325430837,1714878647886,-500.0,0.00035616,8]
[325430838,1714878647895,-599.06,0.00035616,8]
[325430839,1714878647905,-500.0,0.00035616,8]
[325430840,1714878647915,-500.0,0.00035616,8]
[325430841,1714878647924,-751.66,0.00035616,8]
[325430842,1714878647934,-1796.99,0.00035616,8]
[325430843,1714878647944,-899.44,0.00035616,8]
[325430844,1714878647953,-737.99,0.00035616,8]
[325430845,1714878647963,-500.0,0.00035616,8]
[325430846,1714878647972,-600.12,0.00035616,8]
[325430847,1714878647982,-842.13,0.00035616,8]
[325430848,1714878647991,-500.0,0.00035616,8]
[325430849,1714878648000,-2514.0,0.00035616,8]
[325430850,1714878648010,-611.97,0.00035616,8]
[325430851,1714878648019,-715.1,0.00035616,8]
[325430852,1714878648029,-581.33,0.00035616,8]
[325430853,1714878648038,-2134.6,0.00035616,8]
[325430854,1714878648048,-978.66,0.00035616,8]
[325430855,1714878648057,-575.23,0.00035616,8]
[325430856,1714878648066,-1854.91,0.00035616,8]
[325430857,1714878648077,-687.36,0.00035616,8]
[325430858,1714878648087,-1626.74,0.00035616,8]
[325430859,1714878648096,-2250.44,0.00035616,8]
[325430860,1714878648106,-681.38,0.00035616,8]
[325430861,1714878648115,-500.0,0.00035616,8]
[325430862,1714878648125,-701.81,0.00035616,8]
[325430863,1714878648134,-500.0,0.00035616,8]
[325430864,1714878648144,-635.32,0.00035616,8]
[325430865,1714878648153,-639.15,0.00035616,8]
[325430866,1714878648163,-1154.11,0.00035616,8]
[325430867,1714878648172,-500.0,0.00035616,8]
[325430868,1714878648181,-869.7,0.00035616,8]
[325430869,1714878648191,-2090.42,0.00035616,8]
[325430870,1714878648201,-500.0,0.00035616,8]
[325430871,1714878648210,-1318.27,0.00035616,8]
[325430872,1714878648220,-1569.52,0.00035616,8]
[325430873,1714878648230,-500.0,0.00035616,8]
[325430874,1714878648239,-500.0,0.00035616,8]
[325430875,1714878648251,-1220.07,0.00035616,8]
[325430876,1714878648263,-1428.51,0.00035616,8]
[325430877,1714878648273,-767.85,0.00035616,8]
[325430878,1714878648282,-1169.57,0.00035616,8]
[325430879,1714878648293,-2165.98,0.00035616,8]
[325430880,1714878648303,-502.12637825,0.00035616,8]
[325430881,1714878648312,-500.0,0.00035616,8]
[325430882,1714878648629,-1571.52,0.00035616,8]
[325430883,1714878648640,-500.0,0.00035616,8]
[325430884,1714878648650,-500.0,0.00035616,8]
[325430885,1714878648660,-500.0,0.00035616,8]
[325430886,1714878648670,-1865.57,0.00035616,8]
[325430887,1714878648679,-1164.35,0.00035616,8]
[325430888,1714878648689,-953.25,0.00035616,8]
[325430889,1714878648699,-500.0,0.00035616,8]
[325430890,1714878648709,-365.17815613,0.00035616,8]
[325430891,1714878648719,-500.0,0.00035616,8]
[325430892,1714878648728,-2302.38,0.00035616,8]
[325430893,1714878648738,-516.09,0.00035616,8]
[325430894,1714878648748,-759.11,0.00035616,8]
[325430895,1714878648757,-156.13752491,0.00035616,8]
[325430896,1714878648767,-834.75,0.00035616,8]
[325430897,1714878648777,-634.24,0.00035616,8]
[325430898,1714878648786,-2298.0,0.00035616,8]
[325430899,1714878648796,-500.0,0.00035616,8]
[325430900,1714878648806,-917.2,0.00035616,8]
[325430901,1714878648816,-3146.4,0.00035616,8]
[325430902,1714878648827,-1483.78,0.00035616,8]
[325430903,1714878648836,-702.12,0.00035616,8]
[325430904,1714878648846,-552.1,0.00035616,8]
[325430905,1714878648856,-500.0,0.00035616,8]
[325430906,1714878648866,-1305.73,0.00035616,8]
[325430907,1714878648876,-932.21,0.00035616,8]
[325430908,1714878648885,-715.66,0.00035616,8]
[325430909,1714878648895,-1627.58,0.00035616,8]
[325430910,1714878648905,-655.88,0.00035616,8]
[325430911,1714878648915,-2153.38,0.00035616,8]
[325430912,1714878648924,-929.36,0.00035616,8]
[325430913,1714878648934,-500.0,0.00035616,8]
[325430914,1714878648944,-500.0,0.00035616,8]
[325430915,1714878648953,-500.0,0.00035616,8]
[325430916,1714878648962,-757.18,0.00035616,8]
[325430917,1714878648972,-787.59,0.00035616,8]
[325430918,1714878648982,-1200.57,0.00035616,8]
[325430919,1714878648992,-567.18,0.00035616,8]
[325430920,1714878649002,-503.292675,0.00035616,8]
[325430921,1714878649011,-658.87,0.00035616,8]
[325430922,1714878649021,-723.91,0.00035616,8]
[325430923,1714878649031,-718.15,0.00035616,8]
[325430924,1714878649040,-641.95,0.00035616,8]
[325430925,1714878649050,-953.42,0.00035616,8]
[325430926,1714878649060,-1771.38,0.00035616,8]
[325430927,1714878649069,-500.0,0.00035616,8]
[325430928,1714878649080,-500.0,0.00035616,8]
[325430929,1714878649089,-634.32,0.00035616,8]
[325430930,1714878649098,-500.0,0.00035616,8]
[325430931,1714878649108,-503.27596604,0.00035616,8]
[325430932,1714878649120,-1654.23,0.00035616,8]
[325430933,1714878649131,-1121.26,0.00035616,8]
[325430934,1714878649141,-828.91,0.00035616,8]
[325430935,1714878649151,-1634.08,0.00035616,8]
[325430936,1714878649160,-1330.59,0.00035616,8]
[325430937,1714878649170,-1204.81,0.00035616,8]
[325430938,1714878649180,-950.27,0.00035616,8]
[325430939,1714878649189,-2340.24,0.00035616,8]
[325430940,1714878649199,-1380.06,0.00035616,8]
[325430941,1714878649209,-500.0,0.00035616,8]
[325430942,1714878649218,-1097.83,0.00035616,8]
[325430943,1714878649228,-867.9,0.00035616,8]
[325430944,1714878649239,-500.0,0.00035616,8]
[325430945,1714878649249,-500.0,0.00035616,8]
[325430946,1714878649263,-2857.2,0.00035616,8]
[325430947,1714878649273,-1661.42,0.00035616,8]
[325430948,1714878649283,-500.0,0.00035616,8]
[325430949,1714878649294,-500.0,0.00035616,8]
[325430950,1714878649303,-1841.06,0.00035616,8]
[325430951,1714878649313,-1366.07,0.00035616,8]
[325430952,1714878649323,-500.0,0.00035616,8]
[325430953,1714878649333,-563.82,0.00035616,8]
[325430954,1714878649343,-1555.68,0.00035616,8]
[325430955,1714878649354,-500.0,0.00035616,8]
[325430956,1714878649363,-951.7,0.00035616,8]
[325430957,1714878649374,-500.0,0.00035616,8]
[325430958,1714878649384,-1330.42,0.00035616,8]
[325430959,1714878649394,-1955.32,0.00035616,8]
[325430960,1714878649404,-975.0,0.00035616,8]
[325430961,1714878649414,-910.35,0.00035616,8]
[325430962,1714878649423,-500.0,0.00035616,8]
[325430963,1714878649434,-1292.13,0.00035616,8]
[325430964,1714878649444,-598.65,0.00035616,8]
[325430965,1714878649453,-655.83,0.00035616,8]
[325430966,1714878649463,-746.28,0.00035616,8]
[325430967,1714878649473,-500.0,0.00035616,8]
[325430968,1714878649483,-620.54,0.00035616,8]
[325430969,1714878649493,-2126.3,0.00035616,8]
[325430970,1714878649504,-2944.38,0.00035616,2]
[325430971,1714878649514,-500.0,0.00035616,8]
[325430972,1714878649523,-500.0,0.00035616,8]
[325430973,1714878649533,-1689.84,0.00035616,8]
[325430974,1714878649542,-500.0,0.00035616,8]
[325430975,1714878649552,-554.6,0.00035616,8]
[325430976,1714878649562,-578.8,0.00035616,8]
[325430977,1714878649573,-2368.75,0.00035616,8]
[325430978,1714878649583,-824.93,0.00035616,8]
[325430979,1714878649593,-500.0,0.00035616,8]
[325430980,1714878649603,-500.0,0.00035616,8]
[325430981,1714878649614,-654.39,0.00035616,8]
[325430982,1714878649623,-5000.0,0.00035616,8]
[325430983,1714878649633,-500.0,0.00035616,8]
[325430984,1714878649643,-500.0,0.00035616,8]
[325430985,1714878649654,-500.0,0.00035616,8]
[325430986,1714878649663,-425.66177434,0.00035616,8]
[325430987,1714878649673,-500.0,0.00035616,8]
[325430988,1714878649683,-754.0,0.00035616,8]
[325430989,1714878649693,-1517.66,0.00035616,8]
[325430990,1714878649702,-503.5997452,0.00035616,8]
[325430991,1714878649711,-1227.57,0.00035616,8]
[325430992,1714878649721,-500.0,0.00035616,8]
[325430993,1714878649731,-1092.83,0.00035616,8]
[325430994,1714878649741,-500.0,0.00035616,8]
[325430995,1714878649751,-500.0,0.00035616,8]
[325430996,1714878649761,-1366.18,0.00035616,8]
[325430997,1714878649771,-1583.44,0.00035616,8]
[325430998,1714878649780,-551.57,0.00035616,8]
[325430999,1714878649790,-660.74,0.00035616,8]
[325431000,1714878649801,-500.0,0.00035616,8]
[325431001,1714878649811,-680.17,0.00035616,8]
[325431002,1714878649820,-271.69449979,0.00035616,8]
[325431003,1714878649832,-1433.0,0.00035616,8]
[325431004,1714878649843,-500.0,0.00035616,8]
[325431005,1714878649853,-615.83,0.00035616,8]
[325431006,1714878649864,-1625.24,0.00035616,8]
[325431007,1714878649874,-1467.66,0.00035616,8]
[325431008,1714878649883,-503.35753754,0.00035616,8]
[325431009,1714878649893,-767.64,0.00035616,8]
[325431010,1714878649903,-931.83,0.00035616,8]
[325431011,1714878649914,-1628.57,0.00035616,8]
[325431012,1714878649924,-500.0,0.00035616,8]
[325431013,1714878649935,-621.47575326,0.00035616,2]
[325431014,1714878649945,-500.0,0.00035616,8]
[325431015,1714878649954,-692.28,0.00035616,8]
[325431016,1714878649964,-2332.36,0.00035616,8]
[325431017,1714878649974,-1288.91,0.00035616,8]
[325431018,1714878649983,-1697.59,0.00035616,8]
[325431019,1714878649993,-1103.95,0.00035616,8]
[325431020,1714878650003,-500.0,0.00035616,8]
[325431021,1714878650013,-628.48,0.00035616,8]
[325431022,1714878650023,-500.0,0.00035616,8]
[325431023,1714878650032,-539.03548131,0.00035616,8]
[325431024,1714878650042,-500.0,0.00035616,8]
[325431025,1714878650052,-500.0,0.00035616,8]
[325431026,1714878650062,-500.0,0.00035616,8]
[325431027,1714878650073,-723.68,0.00035616,8]
[325431028,1714878650082,-1288.7,0.00035616,8]
[325431029,1714878650092,-500.0,0.00035616,8]
[325431030,1714878650102,-1499.39,0.00035616,8]
[325431031,1714878650111,-522.32,0.00035616,8]
[325431032,1714878650121,-1555.7,0.00035616,8]
[325431033,1714878650131,-502.21993832,0.00035616,8]
[325431034,1714878650141,-174.69339607,0.00035616,8]
[325431035,1714878650773,-503.12660393,0.00035616,8]
[325431036,1714878650784,-500.0,0.00035616,8]
[325431037,1714878650877,-1244.18,0.00035616,8]
[325431038,1714878650887,-155.23344087,0.00035616,8]
[325431039,1714878652528,-346.06909781,0.00035616,8]
[325431040,1714878652537,-1381.25,0.00035616,8]
[325431041,1714878652547,-500.0,0.00035616,8]
[325431042,1714878652556,-1695.01,0.00035616,8]
[325431043,1714878652565,-652.95,0.00035616,8]
[325431044,1714878652575,-503.39651152,0.00035616,8]
[325431045,1714878652584,-1225.16,0.00035616,8]
[325431046,1714878652594,-500.0,0.00035616,8]
[325431047,1714878652603,-3125.91,0.00035616,8]
[325431048,1714878652613,-828.82,0.00035616,8]
[325431049,1714878652622,-1821.34,0.00035616,8]
[325431050,1714878652632,-1930.13,0.00035616,8]
[325431051,1714878652641,-1581.31,0.00035616,8]
[325431052,1714878652650,-501.6659993,0.00035616,8]
[325431053,1714878652660,-500.0,0.00035616,8]
[325431054,1714878652670,-500.0,0.00035616,8]
[325431055,1714878652679,-1212.17,0.00035616,8]
[325431056,1714878652688,-500.0,0.00035616,8]
[325431057,1714878652698,-1000.0,0.00035616,8]
[325431058,1714878652707,-500.0,0.00035616,8]
[325431059,1714878652716,-1294.92,0.00035616,8]
[325431060,1714878652726,-1099.57,0.00035616,8]
[325431061,1714878652735,-620.19,0.00035616,8]
[325431062,1714878652744,-1081.52,0.00035616,8]
[325431063,1714878652754,-2028.64,0.00035616,8]
[325431064,1714878652763,-500.0,0.00035616,8]
[325431065,1714878652773,-500.0,0.00035616,8]
[325431066,1714878652782,-1762.19676094,0.00035616,8]
[325431067,1714878652855,-472.76323906,0.00035616,8]
[325431068,1714878652864,-363.83692243,0.00035616,8]
[325431069,1714878652875,-136.16307757,0.00035616,8]
[325431070,1714878652885,-849.3,0.00035616,8]
[325431071,1714878652894,-1600.4,0.00035616,8]
[325431072,1714878652904,-500.0,0.00035616,8]
[325431073,1714878652914,-663.83692243,0.00035616,8]
[325431074,1714878654528,-11020.7273,0.000125,2]
[325431075,1714878654538,-7504.5439211,0.00017259,2]
[325431076,1714878654547,-350.89,0.00031041,2]
[325431077,1714878654556,-276.29461017,0.0003168,2]
[325431078,1714878654565,-508.26840267,0.00035614,3]
[325431079,1714878654575,-255.43307757,0.00035616,8]
[325431080,1714878654585,-500.0,0.00035616,8]
[325431081,1714878654594,-1780.91,0.00035616,8]
[325431082,1714878654603,-1358.34,0.00035616,8]
[325431083,1714878654612,-1307.43,0.00035616,8]
[325431084,1714878654621,-829.51,0.00035616,8]
[325431085,1714878654630,-892.61,0.00035616,8]
[325431086,1714878654639,-2480.04,0.00035616,8]
[325431087,1714878654648,-811.08,0.00035616,8]
[325431088,1714878654657,-500.0,0.00035616,8]
[325431089,1714878654666,-1723.9,0.00035616,8]
[325431090,1714878654675,-592.57,0.00035616,8]
[325431091,1714878654684,-883.82,0.00035616,8]
[325431092,1714878654693,-1152.66,0.00035616,8]
[325431093,1714878654702,-500.0,0.00035616,8]
[325431094,1714878654711,-500.0,0.00035616,8]
[325431095,1714878654720,-1223.66,0.00035616,8]
[325431096,1714878654729,-633.61,0.00035616,8]
[325431097,1714878654738,-500.0,0.00035616,8]
[325431098,1714878654747,-500.0,0.00035616,8]
[325431099,1714878654756,-500.0,0.00035616,8]
[325431100,1714878654765,-542.26,0.00035616,8]
[325431101,1714878654775,-770.13,0.00035616,8]
[325431102,1714878654784,-1078.36,0.00035616,8]
[325431103,1714878654794,-1957.76,0.00035616,8]
[325431104,1714878654803,-566.26,0.00035616,8]
[325431105,1714878654812,-500.0,0.00035616,8]
[325431106,1714878654821,-3172.29,0.00035616,8]
[325431107,1714878654831,-1575.05,0.00035616,8]
[325431108,1714878654840,-500.0,0.00035616,8]
[325431109,1714878654849,-289.7,0.00035616,8]